Cogmind - Beta 11.2 @@@ ROGUE MODE // 2023.02.19 @ 23:36:40 Player: IzRey Result: Destroyed by D-53 Grenadier with Mini Grenade Launcher Performance ------------- Evolutions (0) 0 Regions Visited (2) 400 Robots Destroyed (14) 70 Value Destroyed (228) 228 Prototype IDs (0) 0 Alien Tech Used (0) 0 Bonus (-11) -11 TOTAL SCORE: 687 Bonus ------- Follower Combat Kills 7 Friendly Fire -18 Cogmind --------- Core Integrity 0/250 Matter 236/300 Energy 20/100 System Corruption 0% Temperature Cool (0) Movement Core (700) Ox13 Location -10/Mines Parts ------- > --- POWER (1) -------- (None) > --- PROPULSION (2) --- (None) > --- UTILITY (2) ------ High-capacity Storage Unit > --- WEAPON (2) ------- Small Laser > --- INVENTORY (20) --- Ion Engine Improved Heat Sink High-capacity Storage Unit Large Matter Pod (150) Signal Interpreter Improved Terrain Scanner Peak State ------------ > --- POWER ------------ Light Nuclear Core > --- PROPULSION ------- Wheel Compact Wheel > --- UTILITY ---------- High-capacity Storage Unit Seismic Detector > --- WEAPON ----------- Assault Rifle Assault Rifle > --- INVENTORY -------- Ion Engine Light Treads Light Treads High-capacity Storage Unit Large Matter Pod Signal Interpreter Improved Terrain Scanner Small Laser Grenade Launcher [Rating: 10] Favorites ----------- Power Light Nuclear Core Engine Light Ion Engine Power Core Light Nuclear Core Propulsion Wheel Treads Light Treads Leg Aluminum Leg Wheel Wheel Utility Seismic Detector Device Seismic Detector Storage High-capacity Storage Unit Weapon Assault Rifle Energy Gun Small Laser Ballistic Gun Assault Rifle Launcher Grenade Launcher Special Weapon Mining Laser Build | -11 -10 -10 ------- Run | Scr Mat Min Slots Evolved . | . . . Power . | . . . Propulsion . | . . . Utility . | . . . Weapon . | . . . Parts Attached 14 | 1 7 6 Power 1 | . 1 . Engine . | . . . Core 1 | . 1 . Reactor . | . . . Propulsion 6 | . 4 2 Treads 4 | . 2 2 Leg . | . . . Wheel 2 | . 2 . Hover . | . . . Flight . | . . . Utility 2 | 1 1 . Device 1 | 1 . . Storage 1 | . 1 . Processor . | . . . Hackware . | . . . Protection . | . . . Artifact . | . . . Weapon 5 | . 1 4 Energy Gun 1 | . . 1 Energy Cannon . | . . . Ballistic Gun 2 | . 1 1 Ballistic Cannon . | . . . Launcher 1 | . . 1 Special Weapon 1 | . . 1 Impact Weapon . | . . . Slashing Weapon . | . . . Piercing Weapon . | . . . Special Melee Weapon . | . . . Unidentified Prototypes . | . . . Parts Lost 10 | . . 10 Power 1 | . . 1 Propulsion 4 | . . 4 Utility 1 | . . 1 Weapon 4 | . . 4 Highest Loss Streak 10 | . . 10 To Critical Strikes . | . . . Average Slot Usage (%) 97 | . 100 94 Engine 5 | . 8 . Core 8 | . 5 12 Leg 1 | . 2 . Wheel 25 | . 25 26 Device 13 | . 14 13 Storage 14 | . 14 14 Ballistic Gun 23 | . 28 16 Launcher 3 | . . 8 Naked Turns . | . . . Heaviest Build 51 | 12 50 51 Greatest Support 40 | 20 26 40 Greatest Overweight (x) 4 | . 1 4 Average Overweight (x) . | . . 1 Largest Inventory Capacity 20 | 8 20 20 Average Capacity 18 | 8 19 20 Most Carried 11 | 7 10 11 Average Carried 9 | 6 8 10 Final Capacity 20 | 8 20 20 Final Carried 10 | 7 10 6 Class Distribution -------------------- 100% | Mutant Dominant Class ---------------- Mutant | -10/Materials Mutant | -10/Mines Resources | -11 -10 -10 ----------- Run | Scr Mat Min Matter Collected 602 | 230 259 113 Remotely . | . . . Salvage Created 441 | 94 215 132 Parts 25 | 6 11 8 Haulers Intercepted . | . . . Recyclers Shooed 2 | . 1 1 Parts Field Recycled . | . . . Retrieved Matter . | . . . Parts Self-Destructed . | . . . Prevented . | . . . Kills | -11 -10 -10 ------- Run | Scr Mat Min Combat Hostiles Destroyed 14 | . 7 7 Guns 7 | . 7 . AOE 7 | . . 7 Classes Destroyed 6 | 2 2 2 Builder 2 | . . 2 Tunneler 1 | 1 . . Recycler 2 | 1 . 1 Swarmer 5 | . 3 2 Grunt 4 | . 4 . Assembled 5 | . . 5 Best Kill Streak 6 | 2 4 6 Combat Bots Only 5 | . 4 5 Max Kills in Single Turn 4 | 1 1 4 Gunslinging . | . . . Exploded 3 | . . 3 Melee . | . . . Uniques/NPCs Destroyed . | . . . Combat | -11 -10 -10 -------- Run | Scr Mat Min Damage Taken 1095 | . 212 883 Core 251 | . 36 215 Absorbed by Shields . | . . . Core Remaining (%) 100 | 100 . . Volleys Fired 34 | 5 18 11 Largest 2 | 2 2 2 Hottest 100 | 40 40 100 Shots Fired 63 | 10 36 17 Gun 54 | 10 36 8 Cannon . | . . . Launcher 8 | . . 8 Special 1 | . . 1 Kinetic 52 | 10 36 6 Thermal 3 | . . 3 Explosive 8 | . . 8 Electromagnetic . | . . . Robot Hit Streak 8 | 8 5 6 Robot Miss Streak 3 | 1 2 3 Penetration Max . | . . . Secondary Targets 2 | . 2 . Max Gunslinging Chain 1 | . 1 . Shots Hit Robots 38 | 8 22 8 Core Hits 34 | 3 13 18 Critical Kills . | . . . Critical Parts Destroyed 1 | . 1 . Critical Strikes 1 | . 1 . Destroy 1 | . 1 . Melee Attacks . | . . . Impact . | . . . Slashing . | . . . Piercing . | . . . Sneak Attacks . | . . . Combat Hostiles . | . . . Follow-up Attacks . | . . . Damage Inflicted 1013 | 83 276 654 Guns 382 | 83 276 23 Cannons . | . . . Explosions 607 | . . 607 Melee . | . . . Ramming . | . . . Kinetic 359 | 83 276 . Thermal 47 | . . 47 Explosive 607 | . . 607 Electromagnetic . | . . . Impact . | . . . Slashing . | . . . Piercing . | . . . Highest Corruption . | . . . Average Corruption . | . . . Corruption Purged . | . . . Corruption Blocked . | . . . Overload Shots . | . . . Overflow Damage 19 | . . 19 Projectiles . | . . . Explosions 19 | . . 19 Melee . | . . . Knockbacks . | . . . Impact . | . . . Kinetic . | . . . Secondary . | . . . Self-Inflicted Damage 150 | . . 150 Shots 5 | . . 5 Rammed . | . . . Targets Rammed . | . . . Kicked . | . . . Crushed . | . . . Highest Temperature 2 | . 2 . Average Temperature 1 | . 1 . Received Heat Transfer 78 | . 78 . Siege Activations . | . . . Robots Corrupted . | . . . Combat Hostiles . | . . . Parts Fried . | . . . Impact Corruptions . | . . . Robots Melted . | . . . Combat Hostiles . | . . . Parts Melted . | . . . Heat Transferred 100 | . . 100 Parts Sabotaged . | . . . Parts Stolen . | . . . Parts Stripped . | . . . Power Chain Reactions . | . . . Missiles Intercepted . | . . . Alert | -11 -10 -10 ------- Run | Scr Mat Min Peak Influence 261 | 10 227 261 Initial 88 | . 6 88 Average 97 | 7 78 135 Maximum Alert Level 1 | . 1 1 Low Security (%) 81 | 100 89 66 Level 1 18 | . 10 33 Level 2 . | . . . Level 3 . | . . . Level 4 . | . . . Level 5 . | . . . High Security . | . . . Max Security . | . . . Squads Dispatched 1 | . 1 . Investigation 1 | . 1 . Extermination . | . . . Reinforcement . | . . . Assault . | . . . Garrison . | . . . Intercept . | . . . Searches Triggered . | . . . Construction Impeded . | . . . Haulers Reinforced . | . . . Active Scanning Responses . | . . . Cargo Convoy Interrupts . | . . . Stealth | -11 -10 -10 --------- Run | Scr Mat Min Distress Signals 1 | . 1 . Communications Jammed . | . . . Distress Signals . | . . . Times Spotted 23 | . 12 11 Peak Tracking Total 5 | . 5 5 Tactical Retreats . | . . . Traps | -11 -10 -10 ------- Run | Scr Mat Min Traps Triggered . | . . . Indirectly . | . . . Trap Hack Attempts . | . . . Triggered . | . . . Disarmed . | . . . Reprogrammed . | . . . Reused . | . . . Traps Extracted . | . . . Installed . | . . . Triggered . | . . . Machines | -11 -10 -10 ---------- Run | Scr Mat Min Machines Disabled . | . . . Max in Single Turn . | . . . Machines Sabotaged . | . . . Garrisons Compromised . | . . . Overloaded Fab Kills . | . . . Hacking | -11 -10 -10 --------- Run | Scr Mat Min Machines Accessed 4 | . 4 . Terminals 3 | . 3 . Fabricators . | . . . Repair Stations . | . . . Recycling Units 1 | . 1 . Scanalyzers . | . . . Garrison Access . | . . . Total Hacks 9 | . 9 . Successful 6 | . 6 . Failed 3 | . 3 . Catastrophic . | . . . Database Lockouts . | . . . Manual 5 | . 5 . Terminals 8 | . 8 . Fabricators . | . . . Repair Stations . | . . . Recycling Units 1 | . 1 . Scanalyzers . | . . . Garrison Access . | . . . Terminal Hacks 4 | . 4 . Locate Traps 3 | . 3 . Zone Layout 1 | . 1 . Fabricator Hacks . | . . . Repair Station Hacks . | . . . Recycling Unit Hacks . | . . . Scanalyzer . | . . . Garrison Access Hacks . | . . . Unauthorized Hacks 2 | . 2 . Terminals 1 | . 1 . Botnet 1 | . 1 . Fabricators . | . . . Repair Stations . | . . . Recycling Units 1 | . 1 . Tunnel 1 | . 1 . Scanalyzers . | . . . Garrison Access . | . . . Data Cores Recovered . | . . . Used . | . . . Hacking Detections 2 | . 2 . Full Trace Events . | . . . Feedback Events . | . . . Feedback Blocked . | . . . Robot Schematics Acquired . | . . . Robots Built . | . . . Authchips . | . . . Time . | . . . Total Robot Build Rating . | . . . Part Schematics Acquired . | . . . Parts Built . | . . . Authchips . | . . . Time . | . . . Total Part Build Rating . | . . . Parts Repaired . | . . . Time . | . . . Parts Recycled . | . . . Recycled Matter . | . . . Retrieved Matter . | . . . Retrieved Components . | . . . Parts Scanalyzed . | . . . Part Schematics Acquired . | . . . Parts Damaged . | . . . Bothacking | -11 -10 -10 ------------ Run | Scr Mat Min Used RIF Installer . | . . . Robots Hacked . | . . . Non-combat . | . . . Combat . | . . . Robot Hacks Applied . | . . . Relay Couplers Released . | . . . Fabnet Peak Effective % . | . . . Robots Rewired . | . . . Allies Hacked . | . . . Hacks Repelled . | . . . Allies | -11 -10 -10 -------- Run | Scr Mat Min Total Allies 1 | . . 1 Largest Group 1 | . . 1 Highest-Rated Group 31 | . . 31 Highest-Rated Ally 31 | . . 31 Total Orders . | . . . Ally Attacks 6 | . . 6 Total Damage 87 | . . 87 Kills 3 | . . 3 Allies Corrupted . | . . . Allies Melted . | . . . Intel | -11 -10 -10 ------- Run | Scr Mat Min Robot Analysis Total . | . . . Derelict Logs Recovered 1 | . . 1 Drone Launches . | . . . Drone Recoveries . | . . . Exploration | -11 -10 -10 ------------- Run | Scr Mat Min Turns Passed 648 | 37 356 255 Spaces Moved 464 | 18 242 204 Core . | . . . Treads 3 | . . 3 Legs 37 | 18 19 . Wheels 424 | . 223 201 Hover . | . . . Flight . | . . . Fastest Speed 105 | 120 105 105 Average Speed 106 | 120 106 105 Slowest Speed 160 | 120 120 160 Overloaded Moves . | . . . Propulsion Burnouts . | . . . Robots Hopped . | . . . Cave-ins Triggered . | . . . Exploration Rate (%) 29 | 2 49 38 Regions Visited 2 Branch Regions 1 Pre-discovered Areas 1 | . 1 . Known Exits Taken . | . . . Unknown Exits Taken 2 | 1 1 . Scrap Searched . | . . . Spaces Dug . | . . . Terrain Destroyed 63 | . . 63 Melee . | . . . Projectile . | . . . AOE 63 | . . 63 Terrain Rammed . | . . . Walls Destroyed . | . . . Machines Disabled . | . . . Actions | -11 -10 -10 --------- Run | Scr Mat Min Total 551 | 24 304 223 Wait 29 | . 28 1 Move 462 | 17 241 204 Hop . | . . . Pick Up 7 | 1 5 1 Fast Attach 3 | 1 2 . Attach 5 | . . 5 Detach . | . . . Swap 6 | . 5 1 Drop 5 | . 5 . Fire 34 | 5 18 11 Melee . | . . . Ram . | . . . Kick . | . . . Crush . | . . . Escape Stasis . | . . . Rewire . | . . . Trap . | . . . Miscellaneous . | . . . Route ------- -11/Scrapyard -10/Materials (discovered 2 exits: [*Mat] / [*Min]) -10/Mines History --------- Turn | Location | Event 13 | -11/Scrapyard | Discovered new exit (range 2) 38 | -11/Scrapyard | Entered Materials 226 | -10/Materials | Discovered new exit (range 3) 308 | -10/Materials | Build established: Mutant 341 | -10/Materials | Discovered new exit (range 14) 394 | -10/Materials | Entered Mines 424 | -10/Mines | Learned Materials trap positions 497 | -10/Mines | Received a Mining Laser from a helpful Derelict 582 | -10/Mines | Assembled infested the area 587 | -10/Mines | Assisted by a Guerilla fighting off Assembled 638 | -10/Mines | Core integrity fell below 50% 644 | -10/Mines | Core integrity fell below 20% 649 | -10/Mines | Destroyed by D-53 Grenadier with Mini Grenade Launcher Last Messages --------------- 00627_ C-30 ARC bursts open, deploying its payload. 00627_ D-53 Grenadier unfolds itself. 00628_ Destroyed Lgt. Ion Engine. 00628_ Com. Wheel destroyed. 00628_ Grenade Launcher destroyed. 00629_ The unstable cave ceiling collapses. 00630_ Wheel destroyed. 00633_ Seismic Detector destroyed. 00637_ The unstable cave ceiling collapses. 00638_ as-99730 destroyed. 00638_ Core Extractor disabled. 00639_ The unstable cave ceiling collapses. 00640_ Mining Laser destroyed. 00641_ Lgt. Treads destroyed. 00641_ D-53 Grenadier destroyed. 00643_ The unstable cave ceiling collapses. 00643_ Lgt. Treads destroyed. 00645_ Assault Rifle destroyed. 00646_ The unstable cave ceiling collapses. [Achievement: Back For More] Map ----- +----------------------------------------------------+ | | | | | | | | | | | | | | | | | | | | | | | | | | | | | | | | | | | | | | | ?????????????????????????????????????????????????? | | ?????????????????############????????????????????? | | ?????????????##### ##???????????????????? | | ????????????## ##??????????????????? | | ????????????# ##?????????????????? | | ????????????# ###???????????????? | | ???????????# @d % #???????????????? | | ??????? # #???????????????? | | ??????? # ##?????????????????? | | ???????? ### ##??????????????????? | | ???????? ????## #???????????????????? | | ????????? ????????###### #???????????????????? | | ??????????????????????## % ####?????????????????? | | ??????????????????????# % #?????????????????? | | ???????????????######## #?????????????????? | | ??????????# #?????????????????? | | ???????????????######## " " #?????????????????? | | ??????????????????????# """ #?????????????????? | | ??????????????????????# #?????????????????? | | ??????????????????????#### ####?????????????????? | | ?????????????????????????# #????????????????????? | | ???????????????????????### #????????????????????? | | ???????????????????????# #????????????????????? | | ????????????????????####[ #????????????????????? | | ???????????????????## =#% ###????????????????????? | | ???????????????????# = * #??????????????????????? | | ???????????????????# ! ##??????????????????????? | | ???????????????????##= #???????????????????????? | | ???????????????????# * #???????????????????????? | | ???????????????????# ##???????????????????????? | | ???????????????????# #????????????????????????? | +----------------------------------------------------+ Best States ------------- Heat Dissipation 25 Energy Generation 14 Energy Capacity 160 Matter Stores 300 Matter Capacity 300 Sight Range 16 Terrain Scan Density 10 Evasion (%) 55 Recoil Reduction 2 Item Schematics ----------------- None Robot Schematics ------------------ None Fabricated ------------ Nothing Alien Tech Used ----------------- None Achievements -------------- Back For More Challenges ------------ None Game ------ Seed DeepStructuralBattery Manual? 0 Play Time 00:13:44 Cumulative 504.8 hours Start 2023.02.19 @ 19:38:57 End 2023.02.19 @ 23:36:40 Sessions 3 Manual Loads 0 Difficulty Rogue Special Mode None Game No. 50 Rogue 33 Adventurer 17 Explorer 0 Win Type - Total 1 Types 1/0/0/0/0/0/0/0/0 Lore% 52 Gallery% 60 Achievement% 49 Wizard Run 0 Options --------- ASCII 0 Keyboard 0 Movement Numpad Keybinds 0 Fullscreen 1 Font 12/Smallcaps Map View 76x56 Tactical HUD 1 Map Filters NONE Filters NONE Steam 1 RUN: 32c76a2b-4646-4b5d-8e88-b95094fe1a8f